[Event "55th Biel Festival MTO 2022"]
[Site "Biel"]
[Date "2022.07.16"]
[Round "4.5"]
[White "Motylev Alexander"]
[Black "Iniyan P"]
[Result "1-0"]
[ECO "B51"]
[WhiteElo "2632"]
[BlackElo "2533"]
[Annotator "ChessBase"]
[PlyCount "129"]
[EventDate "2022.07.13"]
[EventType "swiss"]
[EventCountry "SUI"]
[SourceTitle "playchess.com"]
[Source "ChessBase"]
[SourceQuality "1"]
[TimeControl "40/5400+30:1800+30"]

1. e4 {[%emt 0:00:04]} c5 {[%emt 0:06:34]} 2. Nf3 {[%emt 0:00:08]} d6 {[%emt 0:00:06]} 3. Bb5+ {[%emt 0:00:15]} Nd7 {[%emt 0:00:09]} 4. c4 {[%emt 0:00:24]} a6 {[%emt 0:02:59]} 5. Ba4 {[%emt 0:00:48]} g6 {[%emt 0:01:21]} 6. Nc3 {[%emt 0:00:42]} Bg7 {[%emt 0:00:10]} 7. d3 {[%emt 0:00:32]} Ngf6 {[%emt 0:00:16]} 8. h3 {[%emt 0:00:23]} b6 {[%emt 0:06:41]} 9. Be3 {[%emt 0:03:35]} Bb7 {[%emt 0:00:39]} 10. Qd2 {[%emt 0:01:25]} h5 {[%emt 0:00:34]} 11. Rb1 {[%emt 0:02:22]} Qc7 {[%emt 0:08:06]} 12. O-O {[%emt 0:03:48]} e6 {[%emt 0:04:37]} 13. a3 {[%emt 0:06:44]} O-O {[%emt 0:03:23]} 14. b4 {[%emt 0:02:20]} Rfc8 {[%emt 0:20:27]} 15. Rfc1 {[%emt 0:03:33]} Bc6 {[%emt 0:00:16]} 16. Bd1 {[%emt 0:04:49]} d5 {[%emt 0:05:44]} 17. bxc5 {[%emt 0:11:01]} bxc5 {[%emt 0:00:29]} 18. exd5 {[%emt 0:00:58]} exd5 {[%emt 0:00:08]} 19. d4 {[%emt 0:00:58]} Ne4 {[%emt 0:18:04]} 20. Nxe4 {[%emt 0:03:40]} dxe4 {[%emt 0:00:06]} 21. Bf4 {[%emt 0:01:14]} Qd8 {[%emt 0:00:07]} 22. d5 {[%emt 0:01:01]} Bxd5 {[%emt 0:02:14]} 23. Qxd5 {[%emt 0:02:42]} exf3 {[%emt 0:00:08]} 24. Bxf3 {[%emt 0:02:08]} Ra7 {[%emt 0:00:06]} 25. Qd6 {[%emt 0:17:03]} Bf8 {[%emt 0:04:20]} 26. Qd5 {[%emt 0:11:46]} Qf6 {[%emt 0:01:59]} 27. Bg5 {[%emt 0:00:49]} Qd4 {[%emt 0:01:31]} 28. Re1 {[%emt 0:02:07]} Kg7 {[%emt 0:03:58]} 29. Red1 {[%emt 0:08:04]} Qxd5 {[%emt 0:02:05]} 30. Bxd5 {[%emt 0:00:35]} Nf6 {[%emt 0:03:11]} 31. Bf3 {[%emt 0:00:40]} Re8 {[%emt 0:00:34]} 32. Rb6 {[%emt 0:04:44]} Nd7 {[%emt 0:00:08]} 33. Rb3 {[%emt 0:00:35]} Be7 {[%emt 0:01:32]} 34. Re1 {[%emt 0:03:31]} Nf8 {[%emt 0:00:05]} 35. Rbe3 {[%emt 0:01:04]} Ne6 {[%emt 0:00:07]} 36. Rxe6 {[%emt 0:00:10]} fxe6 {[%emt 0:00:07]} 37. Rxe6 {[%emt 0:00:02]} Bxg5 {[%emt 0:01:50]} 38. Rxe8 {[%emt 0:00:04]} Re7 {[%emt 0:01:26]} 39. Ra8 {[%emt 0:00:57]} Re1+ {[%emt 0:00:35]} 40. Kh2 {[%emt 0:00:16]} Bf6 {[%emt 0:02:26]} 41. Ra7+ {[%emt 0:31:32]} Kh6 {[%emt 0:02:14]} 42. Rxa6 {[%emt 0:00:00]} Bd4 {[%emt 0:00:54]} 43. g4 {[%emt 0:00:00]} hxg4 {[%emt 0:14:00]} 44. Bxg4 {[%emt 0:00:00]} Rf1 {[%emt 0:01:28]} 45. Kg3 {[%emt 0:00:00]} Rxf2 {[%emt 0:00:21]} 46. a4 {[%emt 0:00:00]} Rc2 {[%emt 0:05:59]} 47. Be6 {[%emt 0:00:00]} Kg5 {[%emt 0:00:05]} 48. Kf3 {[%emt 0:00:00]} Bc3 {[%emt 0:01:04]} 49. Ke4 {[%emt 0:00:00]} Rd2 {[%emt 0:00:05]} 50. Bf7 {[%emt 0:00:00]} Kh4 {[%emt 0:02:00]} 51. Rxg6 {[%emt 0:00:00]} Kxh3 {[%emt 0:00:04]} 52. Rg8 {[%emt 0:00:00]} Kh4 {[%emt 0:00:47]} 53. Bd5 {[%emt 0:00:13]} Ra2 {[%emt 0:00:46]} 54. Bc6 {[%emt 0:00:36]} Rd2 {[%emt 0:00:26]} 55. Bb5 {[%emt 0:00:22]} Kh5 {[%emt 0:01:47]} 56. Kf5 {[%emt 0:00:33]} Re2 {[%emt 0:01:27]} 57. Ra8 {[%emt 0:02:35]} Re5+ {[%emt 0:00:10]} 58. Kf4 {[%emt 0:00:09]} Rg5 {[%emt 0:01:46]} 59. a5 {[%emt 0:00:33]} Bd2+ {[%emt 0:00:02]} 60. Ke4 {[%emt 0:00:37]} Kg4 {[%emt 0:00:08]} 61. a6 {[%emt 0:01:06]} Bf4 {[%emt 0:00:08]} 62. Bd7+ {[%emt 0:02:03]} Kg3 {[%emt 0:00:05]} 63. Re8 {[%emt 0:00:18]} Rg7 {[%emt 0:00:29]} 64. a7 {[%emt 0:00:27]} Rxd7 {[%emt 0:00:06]} 65. Rg8+ {[%emt 0:01:03]} 1-0

[Event "55th Biel Festival MTO 2022"]
[Site "Biel"]
[Date "2022.07.16"]
[Round "4.6"]
[White "Sethuraman S.P."]
[Black "Pavlovic Milos"]
[Result "1-0"]
[ECO "C66"]
[WhiteElo "2623"]
[BlackElo "2461"]
[Annotator "ChessBase"]
[PlyCount "68"]
[EventDate "2022.07.13"]
[EventType "swiss"]
[EventCountry "SUI"]
[SourceTitle "playchess.com"]
[Source "ChessBase"]
[SourceQuality "1"]
[TimeControl "40/5400+30:1800+30"]

1. e4 {[%emt 0:00:58]} e5 {[%emt 0:00:17]} 2. Nf3 {[%emt 0:00:00]} Nc6 {[%emt 0:15:22]} 3. Bb5 {[%emt 0:00:03]} Nf6 {[%emt 0:00:30]} 4. d3 {[%emt 0:00:30]} d6 {[%emt 0:00:30]} 5. O-O {[%emt 0:00:30]} Bd7 {[%emt 0:00:30]} 6. Re1 {[%emt 0:00:30]} g6 {[%emt 0:00:30]} 7. c3 {[%emt 0:00:30]} Bg7 {[%emt 0:00:30]} 8. a4 {[%emt 0:00:30]} O-O {[%emt 0:00:30]} 9. a5 {[%emt 0:00:30]} Nb8 {[%emt 0:00:30]} 10. Bc4 {[%emt 0:05:50]} Bg4 {[%emt 0:00:10]} 11. Nbd2 {[%emt 0:00:30]} c6 {[%emt 0:01:20]} 12. h3 {[%emt 0:01:14]} Bxf3 {[%emt 0:00:52]} 13. Nxf3 {[%emt 0:15:13]} Nbd7 {[%emt 0:00:30]} 14. Bb3 {[%emt 0:00:30]} Qc7 {[%emt 0:00:30]} 15. Be3 {[%emt 0:00:30]} d5 {[%emt 0:24:07]} 16. Nd2 {[%emt 0:04:39]} dxe4 {[%emt 0:09:48]} 17. dxe4 {[%emt 0:01:21]} Rfd8 {[%emt 0:05:31]} 18. Qf3 {[%emt 0:07:35]} Nc5 {[%emt 0:18:26]} 19. Bc4 {[%emt 0:00:30]} Qe7 {[%emt 0:00:30]} 20. b4 {[%emt 0:00:30]} Ne6 {[%emt 0:00:30]} 21. Red1 {[%emt 0:00:30]} Ne8 {[%emt 0:00:30]} 22. Bf1 {[%emt 0:18:06]} Nd6 {[%emt 0:00:41]} 23. Nc4 {[%emt 0:00:30]} Nb5 {[%emt 0:00:30]} 24. Re1 {[%emt 0:11:13]} Rab8 {[%emt 0:15:27]} 25. Nb2 {[%emt 0:00:30]} a6 {[%emt 0:00:30]} 26. Bb6 {[%emt 0:00:30]} Nec7 {[%emt 0:00:30]} 27. Na4 {[%emt 0:00:30]} Rd7 {[%emt 0:02:37]} 28. Rec1 {[%emt 0:03:52]} Ne6 {[%emt 0:00:30]} 29. Qe3 {[%emt 0:00:30]} Ng5 {[%emt 0:00:30]} 30. Bc4 {[%emt 0:00:30]} Ne6 {[%emt 0:01:31]} 31. Rd1 {[%emt 0:10:39]} Nbc7 {[%emt 0:00:30]} 32. Bb3 {[%emt 0:01:42]} Qf6 {[%emt 0:00:09]} 33. Rxd7 {[%emt 0:03:26]} Rd8 {[%emt 0:01:05]} 34. Re1 {[%emt 0:00:30]} Rxd7 {[%emt 0:00:05]} 1-0

[Event "55th Biel Festival MTO 2022"]
[Site "Biel"]
[Date "2022.07.16"]
[Round "4.7"]
[White "Mendonca Leon Luke"]
[Black "Banusz Tamas"]
[Result "1-0"]
[ECO "D12"]
[WhiteElo "2567"]
[BlackElo "2611"]
[Annotator "ChessBase"]
[PlyCount "71"]
[EventDate "2022.07.13"]
[EventType "swiss"]
[EventCountry "SUI"]
[SourceTitle "playchess.com"]
[Source "ChessBase"]
[SourceQuality "1"]
[TimeControl "40/5400+30:1800+30"]

1. d4 {[%emt 0:02:27]} d5 {[%emt 0:02:18]} 2. c4 {[%emt 0:01:21]} c6 {[%emt 0:00:14]} 3. Nf3 {[%emt 0:00:34]} Nf6 {[%emt 0:00:08]} 4. e3 {[%emt 0:00:16]} Bf5 {[%emt 0:00:11]} 5. Nc3 {[%emt 0:00:15]} e6 {[%emt 0:00:07]} 6. Nh4 {[%emt 0:00:20]} Bg6 {[%emt 0:00:10]} 7. Be2 {[%emt 0:01:57]} Nbd7 {[%emt 0:00:35]} 8. O-O {[%emt 0:02:05]} Bd6 {[%emt 0:01:34]} 9. g3 {[%emt 0:01:31]} O-O {[%emt 0:01:31]} 10. Nxg6 {[%emt 0:01:56]} hxg6 {[%emt 0:00:03]} 11. Qc2 {[%emt 0:10:07]} Re8 {[%emt 0:01:20]} 12. Bd2 {[%emt 0:12:32]} a6 {[%emt 0:05:10]} 13. Rac1 {[%emt 0:16:05]} b5 {[%emt 0:04:54]} 14. c5 {[%emt 0:03:07]} Bc7 {[%emt 0:00:07]} 15. f4 {[%emt 0:00:23]} Ba5 {[%emt 0:00:10]} 16. Bf3 {[%emt 0:03:19]} Bxc3 {[%emt 0:00:07]} 17. Bxc3 {[%emt 0:00:36]} Ne4 {[%emt 0:00:16]} 18. Bxe4 {[%emt 0:12:33]} dxe4 {[%emt 0:00:06]} 19. Qxe4 {[%emt 0:00:05]} Rc8 {[%emt 0:00:13]} 20. Qg2 {[%emt 0:07:28]} f5 {[%emt 0:00:41]} 21. e4 {[%emt 0:02:31]} Nf6 {[%emt 0:02:13]} 22. d5 {[%emt 0:06:02]} cxd5 {[%emt 0:11:26]} 23. Bxf6 {[%emt 0:01:31]} gxf6 {[%emt 0:00:09]} 24. exd5 {[%emt 0:00:29]} exd5 {[%emt 0:00:26]} 25. g4 {[%emt 0:02:11]} Qd7 {[%emt 0:05:24]} 26. c6 {[%emt 0:02:32]} Qe6 {[%emt 0:01:30]} 27. Rce1 {[%emt 0:03:52]} Qxe1 {[%emt 0:01:16]} 28. Rxe1 {[%emt 0:00:06]} Rxe1+ {[%emt 0:00:04]} 29. Kf2 {[%emt 0:00:03]} Re4 {[%emt 0:02:34]} 30. gxf5 {[%emt 0:02:02]} Rxf4+ {[%emt 0:02:05]} 31. Kg1 {[%emt 0:01:19]} Kh8 {[%emt 0:13:22]} 32. fxg6 {[%emt 0:00:48]} Kg7 {[%emt 0:01:05]} 33. Qxd5 {[%emt 0:01:29]} Kxg6 {[%emt 0:00:06]} 34. Qe6 {[%emt 0:01:37]} Rc7 {[%emt 0:03:38]} 35. Qd6 {[%emt 0:00:47]} Rg4+ {[%emt 0:00:07]} 36. Kf2 {[%emt 0:00:12]} 1-0

[Event "55th Biel Festival MTO 2022"]
[Site "Biel"]
[Date "2022.07.16"]
[Round "4.8"]
[White "Ganguly Surya Shekhar"]
[Black "Bharath Subramaniyam H"]
[Result "1-0"]
[ECO "B40"]
[WhiteElo "2608"]
[BlackElo "2479"]
[Annotator "ChessBase"]
[PlyCount "95"]
[EventDate "2022.07.13"]
[EventType "swiss"]
[EventCountry "SUI"]
[SourceTitle "playchess.com"]
[Source "ChessBase"]
[SourceQuality "1"]
[TimeControl "40/5400+30:1800+30"]

1. e4 {[%emt 0:00:13]} c5 {[%emt 0:00:11]} 2. Nf3 {[%emt 0:00:10]} e6 {[%emt 0:00:07]} 3. Nc3 {[%emt 0:00:07]} a6 {[%emt 0:00:21]} 4. Be2 {[%emt 0:00:07]} b5 {[%emt 0:02:03]} 5. O-O {[%emt 0:00:16]} Bb7 {[%emt 0:00:46]} 6. d4 {[%emt 0:00:10]} cxd4 {[%emt 0:00:47]} 7. Qxd4 {[%emt 0:00:07]} Nc6 {[%emt 0:05:52]} 8. Qe3 {[%emt 0:00:07]} d6 {[%emt 0:08:20]} 9. Rd1 {[%emt 0:00:08]} Be7 {[%emt 0:01:12]} 10. e5 {[%emt 0:09:51]} d5 {[%emt 0:04:05]} 11. a4 {[%emt 0:04:05]} b4 {[%emt 0:04:44]} 12. Ne4 {[%emt 0:00:19]} Nh6 {[%emt 0:04:16]} 13. Nc5 {[%emt 0:26:51]} Bc8 {[%emt 0:27:04]} 14. Nb3 {[%emt 0:00:41]} Nf5 {[%emt 0:03:15]} 15. Qf4 {[%emt 0:01:40]} O-O {[%emt 0:07:24]} 16. g4 {[%emt 0:08:28]} Nh6 {[%emt 0:01:00]} 17. Nbd4 {[%emt 0:01:44]} Bd7 {[%emt 0:04:52]} 18. g5 {[%emt 0:04:44]} Nxd4 {[%emt 0:04:32]} 19. Nxd4 {[%emt 0:00:07]} Nf5 {[%emt 0:00:09]} 20. Nxf5 {[%emt 0:00:06]} exf5 {[%emt 0:00:04]} 21. Rxd5 {[%emt 0:00:08]} Qc8 {[%emt 0:00:33]} 22. Be3 {[%emt 0:01:05]} Bc6 {[%emt 0:04:07]} 23. Rd2 {[%emt 0:00:31]} Re8 {[%emt 0:06:26]} 24. Bc4 {[%emt 0:05:33]} Bf8 {[%emt 0:02:12]} 25. b3 {[%emt 0:01:16]} Qb7 {[%emt 0:05:03]} 26. Rad1 {[%emt 0:02:10]} g6 {[%emt 0:00:31]} 27. e6 {[%emt 0:02:48]} fxe6 {[%emt 0:00:07]} 28. Qe5 {[%emt 0:00:13]} Qf7 {[%emt 0:03:49]} 29. Rd6 {[%emt 0:00:47]} Bd5 {[%emt 0:00:36]} 30. R1xd5 {[%emt 0:06:20]} exd5 {[%emt 0:00:07]} 31. Qxd5 {[%emt 0:00:09]} Qxd5 {[%emt 0:00:05]} 32. Bxd5+ {[%emt 0:00:13]} Kh8 {[%emt 0:00:02]} 33. Bd4+ {[%emt 0:00:25]} Bg7 {[%emt 0:00:02]} 34. Bxg7+ {[%emt 0:00:12]} Kxg7 {[%emt 0:00:04]} 35. Bxa8 {[%emt 0:00:06]} Rxa8 {[%emt 0:00:05]} 36. a5 {[%emt 0:00:09]} h6 {[%emt 0:02:19]} 37. h4 {[%emt 0:01:48]} hxg5 {[%emt 0:00:02]} 38. hxg5 {[%emt 0:00:02]} Rc8 {[%emt 0:00:32]} 39. Rxa6 {[%emt 0:00:27]} Rxc2 {[%emt 0:00:09]} 40. Ra7+ {[%emt 0:02:28]} Kf8 {[%emt 0:00:37]} 41. a6 {[%emt 0:30:15]} Ra2 {[%emt 0:08:05]} 42. Ra8+ {[%emt 0:00:00]} Kg7 {[%emt 0:01:12]} 43. a7 {[%emt 0:00:00]} f4 {[%emt 0:02:30]} 44. Kg2 {[%emt 0:00:00]} Ra3 {[%emt 0:00:18]} 45. f3 {[%emt 0:00:00]} Ra5 {[%emt 0:01:33]} 46. Kh3 {[%emt 0:00:00]} Rxg5 {[%emt 0:00:39]} 47. Rb8 {[%emt 0:00:00]} Rg3+ {[%emt 0:00:08]} 48. Kh2 {[%emt 0:00:00]} 1-0

[Event "55th Biel Festival MTO 2022"]
[Site "Biel"]
[Date "2022.07.16"]
[Round "4.11"]
[White "Gurel Ediz"]
[Black "Alekseenko Kirill"]
[Result "0-1"]
[ECO "C45"]
[WhiteElo "2435"]
[BlackElo "2708"]
[Annotator "ChessBase"]
[PlyCount "54"]
[EventDate "2022.07.13"]
[EventType "swiss"]
[EventCountry "SUI"]
[SourceTitle "playchess.com"]
[Source "ChessBase"]
[SourceQuality "1"]
[TimeControl "40/5400+30:1800+30"]

1. e4 {[%emt 0:00:03]} e5 {[%emt 0:00:20]} 2. Nf3 {[%emt 0:00:13]} Nc6 {[%emt 0:00:19]} 3. d4 {[%emt 0:00:37]} exd4 {[%emt 0:01:15]} 4. Nxd4 {[%emt 0:00:05]} Nf6 {[%emt 0:00:42]} 5. Nxc6 {[%emt 0:00:27]} bxc6 {[%emt 0:00:27]} 6. Bd3 {[%emt 0:00:24]} d5 {[%emt 0:04:01]} 7. exd5 {[%emt 0:01:46]} cxd5 {[%emt 0:00:22]} 8. O-O {[%emt 0:00:05]} Be7 {[%emt 0:00:17]} 9. b3 {[%emt 0:01:56]} O-O {[%emt 0:03:35]} 10. Bb2 {[%emt 0:02:24]} c5 {[%emt 0:04:03]} 11. Nd2 {[%emt 0:06:04]} Rb8 {[%emt 0:06:53]} 12. Be5 {[%emt 0:04:19]} Rb6 {[%emt 0:03:00]} 13. h3 {[%emt 0:08:59]} Bb7 {[%emt 0:18:22]} 14. Re1 {[%emt 0:16:29]} g6 {[%emt 0:01:46]} 15. Be2 {[%emt 0:10:59]} Re6 {[%emt 0:07:05]} 16. Bg3 {[%emt 0:05:09]} Qa5 {[%emt 0:02:14]} 17. Bf3 {[%emt 0:02:47]} Ne4 {[%emt 0:02:23]} 18. Nxe4 {[%emt 0:02:48]} dxe4 {[%emt 0:00:25]} 19. Bg4 {[%emt 0:00:07]} Rd8 {[%emt 0:02:12]} 20. Bxe6 {[%emt 0:09:45]} Rxd1 {[%emt 0:01:22]} 21. Rexd1 {[%emt 0:00:02]} fxe6 {[%emt 0:15:05]} 22. Rd7 {[%emt 0:00:04]} Bf6 {[%emt 0:01:54]} 23. Rad1 {[%emt 0:00:05]} e3 {[%emt 0:01:43]} 24. fxe3 {[%emt 0:00:12]} Bd5 {[%emt 0:00:31]} 25. c4 {[%emt 0:04:13]} Be4 {[%emt 0:00:21]} 26. Bf2 {[%emt 0:05:40]} Qxa2 {[%emt 0:01:31]} 27. Rc7 {[%emt 0:00:17]} Qxb3 {[%emt 0:01:57]} 0-1

[Event "55th Biel Festival MTO 2022"]
[Site "Biel"]
[Date "2022.07.16"]
[Round "4.12"]
[White "Fedoseev Vladimir"]
[Black "Peyrer, Konstantin"]
[Result "1-0"]
[ECO "D02"]
[WhiteElo "2686"]
[BlackElo "2406"]
[Annotator "ChessBase"]
[PlyCount "51"]
[EventDate "2022.07.13"]
[EventType "swiss"]
[EventCountry "SUI"]
[SourceTitle "playchess.com"]
[Source "ChessBase"]
[SourceQuality "1"]
[TimeControl "40/5400+30:1800+30"]

1. Nf3 {[%emt 0:00:03]} d5 {[%emt 0:00:06]} 2. g3 {[%emt 0:00:24]} Nc6 {[%emt 0:00:13]} 3. d4 {[%emt 0:00:15]} Bf5 {[%emt 0:00:07]} 4. Bg2 {[%emt 0:00:52]} e6 {[%emt 0:00:08]} 5. O-O {[%emt 0:00:34]} Nb4 {[%emt 0:00:12]} 6. Ne1 {[%emt 0:00:30]} Nf6 {[%emt 0:12:03]} 7. c4 {[%emt 0:01:20]} Qd7 {[%emt 0:01:26]} 8. Nc3 {[%emt 0:00:34]} dxc4 {[%emt 0:01:23]} 9. Bxb7 {[%emt 0:08:54]} Rd8 {[%emt 0:00:20]} 10. Bg2 {[%emt 0:00:03]} c5 {[%emt 0:02:30]} 11. a3 {[%emt 0:00:14]} Nc6 {[%emt 0:01:21]} 12. dxc5 {[%emt 0:02:03]} Qxd1 {[%emt 0:12:12]} 13. Bxc6+ {[%emt 0:00:26]} Qd7 {[%emt 0:00:05]} 14. Bxd7+ {[%emt 0:00:09]} Kxd7 {[%emt 0:01:11]} 15. Nf3 {[%emt 0:01:30]} Bxc5 {[%emt 0:03:44]} 16. Ne5+ {[%emt 0:00:06]} Ke8 {[%emt 0:00:12]} 17. Nxc4 {[%emt 0:01:06]} Bh3 {[%emt 0:07:42]} 18. Rd1 {[%emt 0:02:16]} Rxd1+ {[%emt 0:01:45]} 19. Nxd1 {[%emt 0:00:30]} Bg4 {[%emt 0:00:14]} 20. Kf1 {[%emt 0:00:14]} Bh3+ {[%emt 0:00:24]} 21. Ke1 {[%emt 0:00:30]} Ng4 {[%emt 0:00:23]} 22. f3 {[%emt 0:00:01]} Nxh2 {[%emt 0:02:13]} 23. Be3 {[%emt 0:00:00]} Be7 {[%emt 0:00:52]} 24. Nf2 {[%emt 0:00:00]} Bg2 {[%emt 0:00:25]} 25. Nd3 {[%emt 0:00:00]} Nf1 {[%emt 0:00:31]} 26. Bxa7 {[%emt 0:00:12]} 1-0

[Event "55th Biel Festival MTO 2022"]
[Site "Biel"]
[Date "2022.07.16"]
[Round "4.13"]
[White "Materia, Marco"]
[Black "Shevchenko Kirill"]
[Result "1/2-1/2"]
[ECO "A70"]
[WhiteElo "2409"]
[BlackElo "2654"]
[Annotator "ChessBase"]
[PlyCount "121"]
[EventDate "2022.07.13"]
[EventType "swiss"]
[EventCountry "SUI"]
[SourceTitle "playchess.com"]
[Source "ChessBase"]
[SourceQuality "1"]
[TimeControl "40/5400+30:1800+30"]

1. d4 {[%emt 0:00:04]} Nf6 {[%emt 0:00:06]} 2. c4 {[%emt 0:00:03]} e6 {[%emt 0:00:05]} 3. Nf3 {[%emt 0:00:04]} c5 {[%emt 0:00:05]} 4. d5 {[%emt 0:00:09]} d6 {[%emt 0:00:06]} 5. Nc3 {[%emt 0:00:08]} exd5 {[%emt 0:00:06]} 6. cxd5 {[%emt 0:00:07]} g6 {[%emt 0:00:01]} 7. h3 {[%emt 0:00:06]} Bg7 {[%emt 0:00:06]} 8. e4 {[%emt 0:00:04]} O-O {[%emt 0:00:06]} 9. Be3 {[%emt 0:00:04]} Re8 {[%emt 0:06:35]} 10. Nd2 {[%emt 0:00:07]} a6 {[%emt 0:03:50]} 11. a4 {[%emt 0:00:05]} Nxe4 {[%emt 0:01:09]} 12. Ncxe4 {[%emt 0:00:29]} f5 {[%emt 0:00:08]} 13. Nxd6 {[%emt 0:00:07]} Qxd6 {[%emt 0:02:50]} 14. Nc4 {[%emt 0:00:22]} Qf8 {[%emt 0:11:57]} 15. g3 {[%emt 0:00:22]} f4 {[%emt 0:04:53]} 16. gxf4 {[%emt 0:00:07]} Qxf4 {[%emt 0:00:10]} 17. Qe2 {[%emt 0:00:32]} Qf6 {[%emt 0:11:06]} 18. Bg2 {[%emt 0:08:17]} Bf5 {[%emt 0:06:40]} 19. O-O {[%emt 0:11:17]} Nd7 {[%emt 0:04:42]} 20. Rfd1 {[%emt 0:05:35]} b5 {[%emt 0:12:16]} 21. axb5 {[%emt 0:07:17]} axb5 {[%emt 0:00:03]} 22. Rxa8 {[%emt 0:02:00]} Rxa8 {[%emt 0:00:01]} 23. Na3 {[%emt 0:03:05]} Qxb2 {[%emt 0:11:31]} 24. Qxb2 {[%emt 0:00:20]} Bxb2 {[%emt 0:00:02]} 25. Nxb5 {[%emt 0:00:08]} Ra1 {[%emt 0:05:23]} 26. Rxa1 {[%emt 0:01:47]} Bxa1 {[%emt 0:00:01]} 27. Nd6 {[%emt 0:06:10]} Bd4 {[%emt 0:05:59]} 28. Nxf5 {[%emt 0:03:36]} gxf5 {[%emt 0:00:02]} 29. Bf4 {[%emt 0:02:51]} Kf7 {[%emt 0:03:48]} 30. Kf1 {[%emt 0:02:34]} Be5 {[%emt 0:04:04]} 31. Be3 {[%emt 0:05:51]} Ke7 {[%emt 0:01:59]} 32. Ke2 {[%emt 0:01:04]} Kd6 {[%emt 0:01:48]} 33. Bh6 {[%emt 0:10:50]} c4 {[%emt 0:00:44]} 34. Bc1 {[%emt 0:01:31]} Bd4 {[%emt 0:01:58]} 35. h4 {[%emt 0:01:21]} Nb6 {[%emt 0:02:48]} 36. Bh3 {[%emt 0:00:38]} Ke5 {[%emt 0:00:06]} 37. f4+ {[%emt 0:03:41]} Kf6 {[%emt 0:00:03]} 38. d6 {[%emt 0:04:10]} Ke6 {[%emt 0:01:07]} 39. Be3 {[%emt 0:01:12]} Bxe3 {[%emt 0:00:05]} 40. Kxe3 {[%emt 0:00:03]} c3 {[%emt 0:01:26]} 41. Kd3 {[%emt 0:30:41]} Na4 {[%emt 0:02:50]} 42. Kc2 {[%emt 0:00:00]} Nc5 {[%emt 0:00:51]} 43. Kxc3 {[%emt 0:00:00]} Ne4+ {[%emt 0:00:05]} 44. Kd4 {[%emt 0:00:00]} Nxd6 {[%emt 0:00:03]} 45. Bf1 {[%emt 0:00:00]} Kf6 {[%emt 0:00:58]} 46. Bd3 {[%emt 0:00:00]} Nc8 {[%emt 0:00:52]} 47. Bc4 {[%emt 0:00:00]} Nd6 {[%emt 0:03:17]} 48. Bg8 {[%emt 0:00:00]} h6 {[%emt 0:00:44]} 49. Bd5 {[%emt 0:00:38]} Ne8 {[%emt 0:00:44]} 50. Bf3 {[%emt 0:06:03]} Ng7 {[%emt 0:00:13]} 51. Bd1 {[%emt 0:01:03]} Ne6+ {[%emt 0:00:24]} 52. Ke3 {[%emt 0:00:04]} Nf8 {[%emt 0:00:07]} 53. h5 {[%emt 0:00:28]} Ne6 {[%emt 0:00:46]} 54. Bb3 {[%emt 0:01:48]} Ng7 {[%emt 0:01:18]} 55. Bd1 {[%emt 0:00:04]} Ke6 {[%emt 0:00:20]} 56. Kd4 {[%emt 0:00:08]} Kf6 {[%emt 0:00:32]} 57. Ke3 {[%emt 0:00:07]} Ne8 {[%emt 0:01:04]} 58. Be2 {[%emt 0:00:44]} Ke6 {[%emt 0:00:56]} 59. Bc4+ {[%emt 0:00:47]} Kd6 {[%emt 0:00:16]} 60. Bd3 {[%emt 0:00:16]} Ng7 {[%emt 0:00:05]} 61. Kd4 {[%emt 0:00:04]} 1/2-1/2

[Event "55th Biel Festival MTO 2022"]
[Site "Biel"]
[Date "2022.07.16"]
[Round "4.14"]
[White "Ajay Krishna, S."]
[Black "Lagarde Maxime"]
[Result "0-1"]
[ECO "A45"]
[WhiteElo "2372"]
[BlackElo "2631"]
[Annotator "ChessBase"]
[PlyCount "68"]
[EventDate "2022.07.13"]
[EventType "swiss"]
[EventCountry "SUI"]
[SourceTitle "playchess.com"]
[Source "ChessBase"]
[SourceQuality "1"]
[TimeControl "40/5400+30:1800+30"]

1. d4 {[%emt 0:00:07]} Nf6 {[%emt 0:00:13]} 2. Bf4 {[%emt 0:00:08]} c5 {[%emt 0:00:50]} 3. d5 {[%emt 0:00:11]} d6 {[%emt 0:02:52]} 4. Nc3 {[%emt 0:00:28]} e5 {[%emt 0:00:21]} 5. dxe6 {[%emt 0:01:44]} Bxe6 {[%emt 0:07:28]} 6. e4 {[%emt 0:06:11]} Nc6 {[%emt 0:00:34]} 7. Nf3 {[%emt 0:05:00]} h6 {[%emt 0:02:29]} 8. Be2 {[%emt 0:09:44]} a6 {[%emt 0:04:16]} 9. O-O {[%emt 0:04:46]} g5 {[%emt 0:08:20]} 10. Bg3 {[%emt 0:03:02]} Nh5 {[%emt 0:01:52]} 11. Nd2 {[%emt 0:06:16]} Nxg3 {[%emt 0:00:05]} 12. hxg3 {[%emt 0:00:18]} h5 {[%emt 0:01:54]} 13. Bxh5 {[%emt 0:12:02]} Ne5 {[%emt 0:14:13]} 14. g4 {[%emt 0:03:11]} Qd7 {[%emt 0:02:38]} 15. Nd5 {[%emt 0:09:46]} Bxd5 {[%emt 0:00:05]} 16. exd5 {[%emt 0:00:04]} O-O-O {[%emt 0:00:11]} 17. Qe2 {[%emt 0:11:11]} f5 {[%emt 0:04:58]} 18. gxf5 {[%emt 0:06:12]} Qxf5 {[%emt 0:10:45]} 19. c3 {[%emt 0:11:31]} g4 {[%emt 0:07:01]} 20. f4 {[%emt 0:00:14]} Qxh5 {[%emt 0:07:37]} 21. fxe5 {[%emt 0:00:05]} Qh2+ {[%emt 0:02:26]} 22. Kf2 {[%emt 0:00:05]} Qh4+ {[%emt 0:00:09]} 23. g3 {[%emt 0:03:28]} Qh2+ {[%emt 0:00:06]} 24. Ke1 {[%emt 0:00:12]} Qxg3+ {[%emt 0:00:06]} 25. Qf2 {[%emt 0:00:26]} Qxe5+ {[%emt 0:00:44]} 26. Kd1 {[%emt 0:00:19]} Rh2 {[%emt 0:01:21]} 27. Qf5+ {[%emt 0:01:32]} Qxf5 {[%emt 0:00:04]} 28. Rxf5 {[%emt 0:00:03]} Bh6 {[%emt 0:00:05]} 29. Nf1 {[%emt 0:01:27]} Rxb2 {[%emt 0:00:05]} 30. Rf6 {[%emt 0:00:20]} Rf8 {[%emt 0:00:23]} 31. Rxf8+ {[%emt 0:00:17]} Bxf8 {[%emt 0:00:04]} 32. Nd2 {[%emt 0:00:04]} Bh6 {[%emt 0:00:12]} 33. Nc4 {[%emt 0:00:29]} Rh2 {[%emt 0:00:13]} 34. Nxd6+ {[%emt 0:00:17]} Kd7 {[%emt 0:00:09]} 0-1

[Event "55th Biel Festival MTO 2022"]
[Site "Biel"]
[Date "2022.07.16"]
[Round "4.15"]
[White "Herrera Reyes, Jose Antonio"]
[Black "Iturrizaga Bonelli Eduardo"]
[Result "0-1"]
[ECO "B23"]
[WhiteElo "2345"]
[BlackElo "2619"]
[Annotator "ChessBase"]
[PlyCount "44"]
[EventDate "2022.07.13"]
[EventType "swiss"]
[EventCountry "SUI"]
[SourceTitle "playchess.com"]
[Source "ChessBase"]
[SourceQuality "1"]
[TimeControl "40/5400+30:1800+30"]

1. e4 {[%emt 0:00:24]} c5 {[%emt 0:00:17]} 2. Nc3 {[%emt 0:00:24]} Nc6 {[%emt 0:01:09]} 3. b3 {[%emt 0:02:37]} g6 {[%emt 0:00:43]} 4. Bb2 {[%emt 0:00:12]} Bg7 {[%emt 0:00:27]} 5. h4 {[%emt 0:06:06]} h6 {[%emt 0:05:52]} 6. Qc1 {[%emt 0:12:01]} Nf6 {[%emt 0:06:57]} 7. Nd5 {[%emt 0:04:32]} d6 {[%emt 0:14:17]} 8. Ne2 {[%emt 0:08:02]} O-O {[%emt 0:03:22]} 9. f3 {[%emt 0:13:45]} Re8 {[%emt 0:14:24]} 10. h5 {[%emt 0:11:28]} g5 {[%emt 0:00:25]} 11. Ne3 {[%emt 0:01:51]} e6 {[%emt 0:10:05]} 12. Ng3 {[%emt 0:05:46]} d5 {[%emt 0:01:59]} 13. Bb5 {[%emt 0:12:53]} Qc7 {[%emt 0:01:09]} 14. Ne2 {[%emt 0:00:07]} Bd7 {[%emt 0:13:04]} 15. exd5 {[%emt 0:05:57]} exd5 {[%emt 0:01:16]} 16. Bxf6 {[%emt 0:01:05]} Bxf6 {[%emt 0:00:04]} 17. Nxd5 {[%emt 0:00:05]} Qe5 {[%emt 0:00:03]} 18. Nxf6+ {[%emt 0:00:13]} Qxf6 {[%emt 0:00:03]} 19. c3 {[%emt 0:06:49]} Ne5 {[%emt 0:01:58]} 20. Bxd7 {[%emt 0:00:14]} Nd3+ {[%emt 0:00:09]} 21. Kd1 {[%emt 0:01:03]} Nxc1 {[%emt 0:00:06]} 22. Rxc1 {[%emt 0:00:15]} Rxe2 {[%emt 0:00:06]} 0-1